fUST/lending_fUST_20250411
["ID","MTS","AMOUNT","RATE_DAILY","PERIOD"]
[357688688,1744332690649,-500.0,0.00018904,2]
[357688689,1744332690660,-1204.17,0.00018904,2]
[357688690,1744332690669,-2211.01,0.00018904,2]
[357688691,1744332690679,-1290.13,0.00018904,2]
[357688692,1744332690688,-500.0,0.00018904,2]
[357688693,1744332690699,-782.17,0.00018904,2]
[357688694,1744332690708,-1521.17,0.00018904,2]
[357688695,1744332690718,-500.0,0.00018904,2]
[357688696,1744332690728,-500.0,0.00018904,2]
[357688697,1744332690738,-500.0,0.00018904,2]
[357688698,1744332690747,-500.0,0.00018904,2]
[357688699,1744332690757,-3640.91,0.00018904,2]
[357688700,1744332690767,-469.89613665,0.00018904,2]
[357688701,1744332690777,-708.03,0.00018904,2]
[357688702,1744332690786,-561.7844126,0.00018904,2]
[357688703,1744332690796,-500.0,0.00018904,2]
[357688704,1744332690805,-1604.56,0.00018904,2]
[357688705,1744332690815,-500.0,0.00018904,2]
[357688706,1744332690825,-1186.97,0.00018904,2]
[357688707,1744332690834,-7810.81,0.00018904,2]
[357688708,1744332690844,-500.0,0.00018904,2]
[357688709,1744332690853,-640.07,0.00018904,2]
[357688710,1744332690863,-500.0,0.00018904,2]
[357688711,1744332690873,-614.86,0.00018904,2]
[357688712,1744332690882,-13554.02,0.00018904,2]
[357688713,1744332690892,-769.63,0.00018904,2]
[357688714,1744332690901,-516.32695568,0.00018904,2]
[357688715,1744332690911,-5806.94,0.00018904,2]
[357688716,1744332690921,-555.86,0.00018904,2]
[357688717,1744332690931,-1492.5,0.00018904,2]
[357688718,1744332690940,-726.32,0.00018904,2]
[357688719,1744332690950,-659.35,0.00018904,2]
[357688720,1744332690960,-688.0,0.00018904,2]
[357688721,1744332690969,-1067.15,0.00018904,2]
[357688722,1744332690978,-2931.48,0.00018904,2]
[357688723,1744332690988,-1735.47,0.00018904,2]
[357688724,1744332690997,-1109.5,0.00018904,2]
[357688725,1744332691007,-711.11,0.00018904,2]
[357688726,1744332691017,-13734.21,0.00018904,2]
[357688727,1744332691026,-2323.29,0.00018904,2]
[357688728,1744332691036,-1042.58,0.00018904,2]
[357688729,1744332691045,-728.17,0.00018904,2]
[357688730,1744332691054,-500.0,0.00018904,2]
[357688731,1744332691064,-500.0,0.00018904,2]
[357688732,1744332691073,-569.2,0.00018904,2]
[357688733,1744332691083,-500.0,0.00018904,2]
[357688734,1744332691092,-4218.44,0.00018904,2]
[357688735,1744332691102,-848.49,0.00018904,2]
[357688736,1744332691111,-2639.23,0.00018904,2]
[357688737,1744332691120,-2518.79,0.00018904,2]
[357688738,1744332691130,-2840.99,0.00018904,2]
[357688739,1744332691139,-500.0,0.00018904,2]
[357688740,1744332691149,-630.78,0.00018904,2]
[357688741,1744332691158,-500.0,0.00018904,2]
[357688742,1744332691168,-755.35,0.00018904,2]
[357688743,1744332691178,-500.0,0.00018904,2]
[357688744,1744332691187,-1220.83,0.00018904,2]
[357688745,1744332691196,-5035.72,0.00018904,2]
[357688746,1744332691206,-3916.52,0.00018904,2]
[357688747,1744332691215,-500.0,0.00018904,2]
[357688748,1744332691224,-500.0,0.00018904,2]
[357688749,1744332691235,-508.34,0.00018904,2]
[357688750,1744332691244,-500.0,0.00018904,2]
[357688751,1744332691254,-1000.19,0.00018904,2]
[357688752,1744332691263,-884.76,0.00018904,2]
[357688753,1744332691274,-500.0,0.00018904,2]
[357688754,1744332691284,-4175.53,0.00018904,2]
[357688755,1744332691293,-1347.73,0.00018904,2]
[357688756,1744332691303,-2772.56,0.00018904,2]
[357688757,1744332691312,-792.4,0.00018904,2]
[357688758,1744332691322,-856.93,0.00018904,2]
[357688759,1744332691332,-740.48,0.00018904,2]
[357688760,1744332691341,-356.81003851,0.00018904,2]
[357688761,1744332691351,-500.0,0.00018904,2]
[357688762,1744332691360,-781.83,0.00018904,2]
[357688763,1744332691370,-500.0,0.00018904,2]
[357688764,1744332691379,-500.0,0.00018904,2]
[357688765,1744332691389,-601.25,0.00018904,2]
[357688766,1744332691398,-9626.05,0.00018904,2]
[357688767,1744332691408,-1947.04,0.00018904,2]
[357688768,1744332691418,-966.14,0.00018904,2]
[357688769,1744332691427,-500.0,0.00018904,2]
[357688770,1744332691437,-4677.94,0.00018904,2]
[357688771,1744332691446,-500.0,0.00018904,2]
[357688772,1744332691456,-500.0,0.00018904,2]
[357688773,1744332691466,-527.85,0.00018904,2]
[357688774,1744332691475,-500.0,0.00018904,2]
[357688775,1744332691484,-714.13,0.00018904,2]
[357688776,1744332691494,-756.51,0.00018904,2]
[357688777,1744332691504,-808.09,0.00018904,2]
[357688778,1744332691514,-6483.88,0.00018904,2]
[357688779,1744332691524,-6484.18,0.00018904,2]
[357688780,1744332691534,-500.0,0.00018904,2]
[357688781,1744332691544,-615.42,0.00018904,2]
[357688782,1744332691553,-500.0,0.00018904,2]
[357688783,1744332691563,-1945.56,0.00018904,2]
[357688784,1744332691572,-524.93,0.00018904,2]
[357688785,1744332691582,-1064.33,0.00018904,2]
[357688786,1744332691591,-585.82,0.00018904,2]
[357688787,1744332691601,-1433.89,0.00018904,2]
[357688788,1744332691610,-917.83,0.00018904,2]
[357688789,1744332691620,-500.0,0.00018904,2]
[357688790,1744332691630,-668.16,0.00018904,2]
[357688791,1744332691639,-1100.79,0.00018904,2]
[357688792,1744332691649,-500.0,0.00018904,2]
[357688793,1744332691660,-500.0,0.00018904,2]
[357688794,1744332691670,-540.97,0.00018904,2]
[357688795,1744332691679,-4679.43,0.00018904,2]
[357688796,1744332691690,-947.12,0.00018904,2]
[357688797,1744332691701,-500.0,0.00018904,2]
[357688798,1744332691712,-500.0,0.00018904,2]
[357688799,1744332691721,-1008.44,0.00018904,2]
[357688800,1744332691731,-248.04652354,0.00018904,2]
[357688801,1744332691744,-4183.52,0.00018904,2]
[357688802,1744332691754,-1151.7,0.00018904,2]
[357688803,1744332691764,-500.0,0.00018904,2]
[357688804,1744332691773,-759.31,0.00018904,2]
[357688805,1744332691783,-500.0,0.00018904,2]
[357688806,1744332691792,-626.77,0.00018904,2]
[357688807,1744332691802,-500.0,0.00018904,2]
[357688808,1744332691812,-942.33,0.00018904,2]
[357688809,1744332691821,-2564.86,0.00018904,2]
[357688810,1744332691831,-1699.0,0.00018904,2]
[357688811,1744332691840,-731.4,0.00018904,2]
[357688812,1744332691850,-500.0,0.00018904,2]
[357688813,1744332691859,-570.97,0.00018904,2]
[357688814,1744332691869,-754.83,0.00018904,2]
[357688815,1744332691878,-3260.9,0.00018904,2]
[357688816,1744332691887,-500.9,0.00018904,2]
[357688817,1744332691896,-500.0,0.00018904,2]
[357688818,1744332691906,-18184.96,0.00018904,2]
[357688819,1744332691915,-500.0,0.00018904,2]
[357688820,1744332691924,-500.0,0.00018904,2]
[357688821,1744332691934,-506.91,0.00018904,2]
[357688822,1744332691943,-500.0,0.00018904,2]
[357688823,1744332691952,-740.5,0.00018904,2]
[357688824,1744332691962,-201.63425615,0.00018904,2]
[357688825,1744332691971,-500.0,0.00018904,2]
[357688826,1744332691981,-559.11,0.00018904,2]
[357688827,1744332691991,-1994.39,0.00018904,2]
[357688828,1744332692000,-911.05,0.00018904,2]
[357688829,1744332692009,-6436.24,0.00018904,2]
[357688830,1744332692019,-1272.17,0.00018904,2]
[357688831,1744332692028,-1574.76,0.00018904,2]
[357688832,1744332692039,-976.71,0.00018904,2]
[357688833,1744332692049,-1474.54,0.00018904,2]
[357688834,1744332692058,-650.21,0.00018904,2]
[357688835,1744332692068,-3050.81,0.00018904,2]
[357688836,1744332692077,-500.0,0.00018904,2]
[357688837,1744332692087,-2422.75,0.00018904,2]
[357688838,1744332692097,-524.39,0.00018904,2]
[357688839,1744332692106,-618.62,0.00018904,2]
[357688840,1744332692115,-5298.82,0.00018904,2]
[357688841,1744332692125,-23036.90505318,0.00018986,2]
[357688842,1744332692134,-6008.54924081,0.00019,2]
[357688843,1744332692144,-800.0,0.00019,4]
[357688844,1744332692153,-619.0,0.00019,2]
[357688845,1744332692163,-1979.0,0.00019,2]
[357688846,1744332692172,-200.0,0.00019,8]
[357688847,1744332692181,-2000.0,0.00019,2]
[357688848,1744332692340,-1000.0,0.00019,2]
[357688849,1744332692350,-1000.0,0.00019043,100]
[357688850,1744332692360,-12500.0,0.00019081,2]
[357688851,1744332692370,-12500.0,0.0001909,2]
[357688852,1744332692379,-12500.0,0.00019099,2]
[357688853,1744332692389,-11630.24417326,0.00019107,2]
[357688854,1744332692399,-12500.0,0.00019108,2]
[357688855,1744332692409,-12500.0,0.00019116,2]
[357688856,1744332692419,-446.249,0.00019118,7]
[357688857,1744332692428,-12500.0,0.00019125,2]
[357688858,1744332692438,-12500.0,0.00019134,2]
[357688859,1744332692447,-12500.0,0.00019143,2]
[357688860,1744332692457,-12500.0,0.00019152,2]
[357688861,1744332692467,-12500.0,0.00019152,2]
[357688862,1744332692477,-12500.0,0.0001916,2]
[357688863,1744332692486,-12500.0,0.0001916,2]
[357688864,1744332692496,-215.0738,0.00019166,2]
[357688865,1744332692505,-151.0,0.00019166,2]
[357688866,1744332692515,-12500.0,0.00019169,2]
[357688867,1744332692524,-12500.0,0.00019169,2]
[357688868,1744332692536,-1132.93,0.00019178,2]
[357688869,1744332692545,-3699.75,0.00019178,2]
[357688870,1744332692555,-12500.0,0.00019178,2]
[357688871,1744332692564,-12500.0,0.00019178,2]
[357688872,1744332692574,-865.73,0.00019178,2]
[357688873,1744332692583,-1251.82,0.00019178,2]
[357688874,1744332692592,-500.0,0.00019178,2]
[357688875,1744332692602,-599.27,0.00019178,2]
[357688876,1744332692611,-570.69,0.00019178,2]
[357688877,1744332692621,-822.09,0.00019178,2]
[357688878,1744332692630,-500.0,0.00019178,2]
[357688879,1744332692640,-500.0,0.00019178,2]
[357688880,1744332692650,-500.0,0.00019178,2]
[357688881,1744332692661,-780.46,0.00019178,2]
[357688882,1744332692671,-911.25,0.00019178,2]
[357688883,1744332692680,-500.0,0.00019178,2]
[357688884,1744332692690,-500.0,0.00019178,2]
[357688885,1744332692700,-500.0,0.00019178,2]
[357688886,1744332692710,-500.0,0.00019178,2]
[357688887,1744332692719,-300.0,0.00019178,2]
[357688888,1744332692730,-500.0,0.00019178,2]
[357688889,1744332692740,-164.46891751,0.00019178,2]
[357688890,1744332692749,-500.0,0.00019178,2]
[357688891,1744332692759,-179.33,0.00019178,2]
[357688892,1744332692769,-500.0,0.00019178,2]
[357688893,1744332692780,-500.0,0.00019178,2]
[357688894,1744332692790,-500.0,0.00019178,2]
[357688895,1744332692799,-1232.99,0.00019178,2]
[357688896,1744332692809,-588.16,0.00019178,2]
[357688897,1744332692818,-500.0,0.00019178,2]
[357688898,1744332692828,-500.0,0.00019178,2]
[357688899,1744332692837,-500.0,0.00019178,2]
[357688900,1744332692846,-500.0,0.00019178,2]
[357688901,1744332692855,-507.17,0.00019178,2]
[357688902,1744332692865,-500.0,0.00019178,2]
[357688903,1744332692875,-1079.66,0.00019178,2]
[357688904,1744332692884,-1430.67,0.00019178,2]
[357688905,1744332692894,-303.47171081,0.00019178,2]
[357688906,1744332692903,-1119.95,0.00019178,2]
[357688907,1744332692912,-625.16,0.00019178,2]
[357688908,1744332692922,-500.0,0.00019178,2]
[357688909,1744332692931,-500.0,0.00019178,2]
[357688910,1744332692941,-686.77,0.00019178,2]
[357688911,1744332692951,-2680.42,0.00019178,2]
[357688912,1744332692961,-500.0,0.00019178,2]
[357688913,1744332692972,-500.0,0.00019178,2]
[357688914,1744332692982,-500.0,0.00019178,2]
[357688915,1744332692991,-500.0,0.00019178,2]
[357688916,1744332693001,-596.86,0.00019178,2]
[357688917,1744332693011,-2411.42,0.00019178,2]
[357688918,1744332693021,-500.0,0.00019178,2]
[357688919,1744332693032,-687.7,0.00019178,2]
[357688920,1744332693042,-500.0,0.00019178,2]
[357688921,1744332693051,-902.62,0.00019178,2]
[357688922,1744332693061,-2689.13,0.00019178,2]
[357688923,1744332693070,-785.7,0.00019178,2]
[357688924,1744332693080,-500.0,0.00019178,2]
[357688925,1744332693089,-5675.99,0.00019178,2]
[357688926,1744332693098,-500.0,0.00019178,2]
[357688927,1744332693108,-870.2,0.00019178,2]
[357688928,1744332693118,-500.0,0.00019178,2]
[357688929,1744332693128,-453.6347443,0.00019178,2]
[357688930,1744332693137,-597.88,0.00019178,2]
[357688931,1744332693147,-500.0,0.00019178,2]
[357688932,1744332693157,-626.25,0.00019178,2]
[357688933,1744332693166,-500.0,0.00019178,2]
[357688934,1744332693176,-892.18,0.00019178,2]
[357688935,1744332693185,-500.0,0.00019178,2]
[357688936,1744332693195,-198.88,0.00019178,2]
[357688937,1744332693205,-682.01,0.00019178,2]
[357688938,1744332693215,-500.0,0.00019178,2]
[357688939,1744332693225,-500.0,0.00019178,2]
[357688940,1744332693234,-2060.38,0.00019178,2]
[357688941,1744332693244,-605.05,0.00019178,2]
[357688942,1744332693254,-500.0,0.00019178,2]
[357688943,1744332693263,-500.0,0.00019178,2]
[357688944,1744332693273,-500.0,0.00019178,2]
[357688945,1744332693283,-2354.26,0.00019178,2]
[357688946,1744332693293,-200.67351559,0.00019178,2]
[357688947,1744332693303,-622.34,0.00019178,2]
[357688948,1744332693312,-500.0,0.00019178,2]
[357688949,1744332693322,-1017.63,0.00019178,2]
[357688950,1744332693332,-938.97,0.00019178,2]
[357688951,1744332693342,-500.0,0.00019178,2]
[357688952,1744332693351,-658.07,0.00019178,2]
[357688953,1744332693361,-500.0,0.00019178,2]
[357688954,1744332693371,-500.0,0.00019178,2]
[357688955,1744332693381,-1373.8,0.00019178,2]
[357688956,1744332693391,-753.79,0.00019178,2]
[357688957,1744332693401,-1265.29,0.00019178,2]
[357688958,1744332693411,-500.0,0.00019178,2]
[357688959,1744332693420,-820.1,0.00019178,2]
[357688960,1744332693432,-584.98,0.00019178,2]
[357688961,1744332693441,-1800.19,0.00019178,2]
[357688962,1744332693451,-382.35700641,0.00019178,2]
[357688963,1744332693460,-508.82,0.00019178,2]
[357688964,1744332693469,-500.0,0.00019178,2]
[357688965,1744332693478,-500.0,0.00019178,2]
[357688966,1744332693487,-965.93,0.00019178,2]
[357688967,1744332693497,-622.37,0.00019178,2]
[357688968,1744332693507,-500.0,0.00019178,2]
[357688969,1744332693517,-964.69,0.00019178,2]
[357688970,1744332693526,-1069.32,0.00019178,2]
[357688971,1744332693537,-1504.79,0.00019178,2]
[357688972,1744332693547,-626.21,0.00019178,2]
[357688973,1744332693557,-522.1,0.00019178,2]
[357688974,1744332693567,-500.0,0.00019178,2]
[357688975,1744332693577,-500.0,0.00019178,2]
[357688976,1744332693586,-500.0,0.00019178,2]
[357688977,1744332693597,-500.0,0.00019178,2]
[357688978,1744332693607,-500.0,0.00019178,2]
[357688979,1744332693616,-519.3,0.00019178,2]
[357688980,1744332693626,-1328.83,0.00019178,2]
[357688981,1744332693637,-920.39,0.00019178,2]
[357688982,1744332693646,-1101.36,0.00019178,2]
[357688983,1744332693657,-500.0,0.00019178,2]
[357688984,1744332693670,-818.53,0.00019178,2]
[357688985,1744332693680,-856.67,0.00019178,2]
[357688986,1744332693690,-743.65,0.00019178,2]
[357688987,1744332693701,-1156.1,0.00019178,2]
[357688988,1744332693710,-678.36,0.00019178,2]
[357688989,1744332693720,-1705.48,0.00019178,2]
[357688990,1744332693729,-716.68,0.00019178,2]
[357688991,1744332693739,-500.0,0.00019178,2]
[357688992,1744332693748,-500.0,0.00019178,2]
[357688993,1744332693758,-1296.89,0.00019178,2]
[357688994,1744332693768,-500.0,0.00019178,2]
[357688995,1744332693778,-790.9,0.00019178,2]
[357688996,1744332693787,-704.94,0.00019178,2]
[357688997,1744332693796,-567.7,0.00019178,2]
[357688998,1744332693806,-500.0,0.00019178,2]
[357688999,1744332693815,-558.42,0.00019178,2]
[357689000,1744332693826,-500.0,0.00019178,2]
[357689001,1744332693835,-1188.07,0.00019178,2]
[357689002,1744332693845,-500.0,0.00019178,2]
[357689003,1744332693855,-714.62,0.00019178,2]
[357689004,1744332693864,-3771.47,0.00019178,2]
[357689005,1744332693874,-570.24,0.00019178,2]
[357689006,1744332693883,-1402.01,0.00019178,2]
[357689007,1744332693893,-500.0,0.00019178,2]
[357689008,1744332693903,-1107.44,0.00019178,2]
[357689009,1744332693912,-500.0,0.00019178,2]
[357689010,1744332693922,-726.32,0.00019178,2]
[357689011,1744332693932,-1438.7,0.00019178,2]
[357689012,1744332693941,-500.0,0.00019178,2]
[357689013,1744332693950,-934.2,0.00019178,2]
[357689014,1744332693960,-1864.53,0.00019178,2]
[357689015,1744332693969,-870.5,0.00019178,2]
[357689016,1744332693978,-537.53,0.00019178,2]
[357689017,1744332693987,-998.15,0.00019178,2]
[357689018,1744332693996,-1383.56,0.00019178,2]
[357689019,1744332694010,-3529.69,0.00019178,2]
[357689020,1744332694019,-500.0,0.00019178,2]
[357689021,1744332694029,-500.0,0.00019178,2]
[357689022,1744332694039,-3044.77,0.00019178,2]
[357689023,1744332694048,-2146.75,0.00019178,2]
[357689024,1744332694058,-1512.13,0.00019178,2]
[357689025,1744332694067,-14936.72,0.00019178,2]
[357689026,1744332694077,-1335.19,0.00019178,2]
[357689027,1744332694086,-500.0,0.00019178,2]
[357689028,1744332694096,-1204.17,0.00019178,2]
[357689029,1744332694105,-2211.01,0.00019178,2]
[357689030,1744332694115,-1290.13,0.00019178,2]
[357689031,1744332694125,-500.0,0.00019178,2]
[357689032,1744332694134,-782.17,0.00019178,2]
[357689033,1744332694143,-1521.17,0.00019178,2]
[357689034,1744332694155,-500.0,0.00019178,2]
[357689035,1744332694165,-500.0,0.00019178,2]
[357689036,1744332694175,-500.0,0.00019178,2]
[357689037,1744332694185,-500.0,0.00019178,2]
[357689038,1744332694194,-3640.91,0.00019178,2]
[357689039,1744332694203,-708.03,0.00019178,2]
[357689040,1744332694213,-500.0,0.00019178,2]
[357689041,1744332694222,-1604.56,0.00019178,2]
[357689042,1744332694232,-500.0,0.00019178,2]
[357689043,1744332694242,-1186.97,0.00019178,2]
[357689044,1744332694251,-7810.81,0.00019178,2]
[357689045,1744332694260,-500.0,0.00019178,2]
[357689046,1744332694270,-640.07,0.00019178,2]
[357689047,1744332694279,-500.0,0.00019178,2]
[357689048,1744332694289,-614.86,0.00019178,2]
[357689049,1744332694300,-13554.02,0.00019178,2]
[357689050,1744332694309,-769.63,0.00019178,2]
[357689051,1744332694319,-5806.94,0.00019178,2]
[357689052,1744332694329,-555.86,0.00019178,2]
[357689053,1744332694339,-1492.5,0.00019178,2]
[357689054,1744332694348,-726.32,0.00019178,2]
[357689055,1744332694357,-659.35,0.00019178,2]
[357689056,1744332694367,-688.0,0.00019178,2]
[357689057,1744332694376,-1067.15,0.00019178,2]
[357689058,1744332694386,-2931.48,0.00019178,2]
[357689059,1744332694395,-1735.47,0.00019178,2]
[357689060,1744332694404,-1109.5,0.00019178,2]
[357689061,1744332694414,-711.11,0.00019178,2]
[357689062,1744332694424,-13734.21,0.00019178,2]
[357689063,1744332694434,-2323.29,0.00019178,2]
[357689064,1744332694443,-1042.58,0.00019178,2]
[357689065,1744332694452,-728.17,0.00019178,2]
[357689066,1744332694462,-500.0,0.00019178,2]
[357689067,1744332694472,-367.49191265,0.00019178,2]
[357689068,1744332694481,-569.2,0.00019178,2]
[357689069,1744332694491,-500.0,0.00019178,2]
[357689070,1744332694500,-4218.44,0.00019178,2]
[357689071,1744332694509,-848.49,0.00019178,2]
[357689072,1744332694519,-2639.23,0.00019178,2]
[357689073,1744332694529,-2518.79,0.00019178,2]
[357689074,1744332694538,-500.0,0.00019178,2]
[357689075,1744332694547,-2840.99,0.00019178,2]
[357689076,1744332694557,-630.78,0.00019178,2]
[357689077,1744332694566,-500.0,0.00019178,2]
[357689078,1744332694576,-755.35,0.00019178,2]
[357689079,1744332694585,-500.0,0.00019178,2]
[357689080,1744332694596,-1220.83,0.00019178,2]
[357689081,1744332694606,-5035.72,0.00019178,2]
[357689082,1744332694616,-3916.52,0.00019178,2]
[357689083,1744332694626,-500.0,0.00019178,2]
[357689084,1744332694635,-500.0,0.00019178,2]
[357689085,1744332694645,-508.34,0.00019178,2]
[357689086,1744332694655,-610.8845681,0.00019178,2]
[357689087,1744332694667,-1000.19,0.00019178,2]
[357689088,1744332694815,-884.76,0.00019178,2]
[357689089,1744332694826,-500.0,0.00019178,2]
[357689090,1744332694836,-4175.53,0.00019178,2]
[357689091,1744332694845,-1347.73,0.00019178,2]
[357689092,1744332694855,-2772.56,0.00019178,2]
[357689093,1744332694864,-792.4,0.00019178,2]
[357689094,1744332694874,-856.93,0.00019178,2]
[357689095,1744332694883,-740.48,0.00019178,2]
[357689096,1744332694894,-500.0,0.00019178,2]
[357689097,1744332694904,-781.83,0.00019178,2]
[357689098,1744332694913,-500.0,0.00019178,2]
[357689099,1744332694923,-262.25206833,0.00019178,2]
[357689100,1744332694933,-601.25,0.00019178,2]
[357689101,1744332694942,-9626.05,0.00019178,2]
[357689102,1744332694952,-1947.04,0.00019178,2]
[357689103,1744332694962,-966.14,0.00019178,2]
[357689104,1744332694971,-500.0,0.00019178,2]
[357689105,1744332694982,-4677.94,0.00019178,2]
[357689106,1744332694991,-500.0,0.00019178,2]
[357689107,1744332695001,-500.0,0.00019178,2]
[357689108,1744332695010,-527.85,0.00019178,2]
[357689109,1744332695019,-500.0,0.00019178,2]
[357689110,1744332695029,-714.13,0.00019178,2]
[357689111,1744332695039,-756.51,0.00019178,2]
[357689112,1744332695049,-808.09,0.00019178,2]
[357689113,1744332695059,-6483.88,0.00019178,2]
[357689114,1744332695069,-6484.18,0.00019178,2]
[357689115,1744332695079,-500.0,0.00019178,2]
[357689116,1744332695089,-615.42,0.00019178,2]
[357689117,1744332695098,-500.0,0.00019178,2]
[357689118,1744332695108,-1945.56,0.00019178,2]
[357689119,1744332695117,-524.93,0.00019178,2]
[357689120,1744332695127,-1064.33,0.00019178,2]
[357689121,1744332695137,-585.82,0.00019178,2]
[357689122,1744332695146,-1433.89,0.00019178,2]
[357689123,1744332695155,-917.83,0.00019178,2]
[357689124,1744332695165,-500.0,0.00019178,2]
[357689125,1744332695175,-668.16,0.00019178,2]
[357689126,1744332695185,-1100.79,0.00019178,2]
[357689127,1744332695194,-500.0,0.00019178,2]
[357689128,1744332695204,-500.0,0.00019178,2]
[357689129,1744332695214,-540.97,0.00019178,2]
[357689130,1744332695224,-4679.43,0.00019178,2]
[357689131,1744332695233,-947.12,0.00019178,2]
[357689132,1744332695243,-500.0,0.00019178,2]
[357689133,1744332695253,-500.0,0.00019178,2]
[357689134,1744332695262,-1008.44,0.00019178,2]
[357689135,1744332695272,-4183.52,0.00019178,2]
[357689136,1744332695282,-1151.7,0.00019178,2]
[357689137,1744332695292,-500.0,0.00019178,2]
[357689138,1744332695302,-759.31,0.00019178,2]
[357689139,1744332695311,-500.0,0.00019178,2]
[357689140,1744332695321,-500.0,0.00019178,2]
[357689141,1744332695331,-626.77,0.00019178,2]
[357689142,1744332695341,-942.33,0.00019178,2]
[357689143,1744332695351,-2564.86,0.00019178,2]
[357689144,1744332695360,-1699.0,0.00019178,2]
[357689145,1744332695369,-731.4,0.00019178,2]
[357689146,1744332695379,-500.0,0.00019178,2]
[357689147,1744332695389,-570.97,0.00019178,2]
[357689148,1744332695398,-754.83,0.00019178,2]
[357689149,1744332695407,-3260.9,0.00019178,2]
[357689150,1744332695416,-500.9,0.00019178,2]
[357689151,1744332695426,-500.0,0.00019178,2]
[357689152,1744332695435,-18184.96,0.00019178,2]
[357689153,1744332695445,-500.0,0.00019178,2]
[357689154,1744332695454,-500.0,0.00019178,2]
[357689155,1744332695464,-506.91,0.00019178,2]
[357689156,1744332695474,-500.0,0.00019178,2]
[357689157,1744332695483,-740.5,0.00019178,2]
[357689158,1744332695493,-500.0,0.00019178,2]
[357689159,1744332695503,-559.11,0.00019178,2]
[357689160,1744332695513,-1994.39,0.00019178,2]
[357689161,1744332695522,-911.05,0.00019178,2]
[357689162,1744332695533,-6436.24,0.00019178,2]
[357689163,1744332695543,-1272.17,0.00019178,2]
[357689164,1744332695552,-1574.76,0.00019178,2]
[357689165,1744332695562,-976.71,0.00019178,2]
[357689166,1744332695572,-1474.54,0.00019178,2]
[357689167,1744332695581,-650.21,0.00019178,2]
[357689168,1744332695590,-3050.81,0.00019178,2]
[357689169,1744332695600,-500.0,0.00019178,2]
[357689170,1744332695609,-2422.75,0.00019178,2]
[357689171,1744332695619,-524.39,0.00019178,2]
[357689172,1744332695629,-618.62,0.00019178,2]
[357689173,1744332695639,-5298.82,0.00019178,2]
[357689174,1744332695649,-151.0,0.00019178,2]
[357689175,1744332695661,-151.0,0.00019178,2]
[357689176,1744332695670,-151.0,0.00019178,2]
[357689177,1744332695680,-151.0,0.00019178,2]
[357689178,1744332695689,-151.0,0.00019178,2]
[357689179,1744332695699,-151.0,0.00019178,2]
[357689180,1744332695708,-151.0,0.00019178,2]
[357689181,1744332695717,-151.0,0.00019178,2]
[357689182,1744332695726,-151.0,0.00019178,2]
[357689183,1744332695736,-151.0,0.00019178,2]
[357689184,1744332695746,-151.0,0.00019178,2]
[357689185,1744332695755,-151.0,0.00019178,2]
[357689186,1744332695765,-151.0,0.00019178,2]
[357689187,1744332695774,-151.0,0.00019178,2]